[Event "Titled Tuesday Blitz July 18 Early 2023"]
[White "Ionescu, Mihai"]
[Black "Slovineanu, Viacheslav"]
[WhiteFideId "1202499"]
[BlackFideId "13900510"]
[WhiteElo "2545"]
[BlackElo "2373"]
[Result "0-1"]
[Round "5"]
[TimeControl "180+2"]
[Date "2023.07.18"]
[WhiteClock "0:00:01"]
[BlackClock "0:00:17"]
[Board "144"]

1. Nf3 {[%clk 0:02:58]}  d5 {[%clk 0:02:59]} 2. g3 {[%clk 0:02:53]}  Nd7 {[%clk 0:02:58]} 3. d4 {[%clk 0:02:52]}  Ngf6 {[%clk 0:02:59]} 4. Bg2 {[%clk 0:02:51]}  e6 {[%clk 0:02:59]} 5. O-O {[%clk 0:02:51]}  b5 {[%clk 0:02:59]} 6. b3 {[%clk 0:02:49]}  Bb7 {[%clk 0:02:55]} 7. Nbd2 {[%clk 0:02:48]}  c5 {[%clk 0:02:54]} 8. dxc5 {[%clk 0:02:48]}  Bxc5 {[%clk 0:02:52]} 9. Bb2 {[%clk 0:02:48]}  O-O {[%clk 0:02:51]} 10. Rc1 {[%clk 0:02:38]}  a5 {[%clk 0:02:48]} 11. c4 {[%clk 0:02:33]}  dxc4 {[%clk 0:02:47]} 12. bxc4 {[%clk 0:02:33]}  b4 {[%clk 0:02:47]} 13. Qa4 {[%clk 0:02:24]}  Qc7 {[%clk 0:02:19]} 14. Nd4 {[%clk 0:02:10]}  Bxg2 {[%clk 0:02:13]} 15. Kxg2 {[%clk 0:02:10]}  Bxd4 {[%clk 0:01:51]} 16. Bxd4 {[%clk 0:02:08]}  e5 {[%clk 0:01:52]} 17. Bb2 {[%clk 0:01:58]}  Nc5 {[%clk 0:01:50]} 18. Qc2 {[%clk 0:01:53]}  Rfe8 {[%clk 0:01:45]} 19. Nb3 {[%clk 0:01:13]}  Nfd7 {[%clk 0:01:26]} 20. Nxc5 {[%clk 0:00:25]}  Nxc5 {[%clk 0:01:25]} 21. Rfd1 {[%clk 0:00:26]}  a4 {[%clk 0:01:07]} 22. Rd5 {[%clk 0:00:21]}  b3 {[%clk 0:01:01]} 23. axb3 {[%clk 0:00:19]}  axb3 {[%clk 0:00:58]} 24. Qb1 {[%clk 0:00:15]}  f6 {[%clk 0:00:53]} 25. Rcd1 {[%clk 0:00:09]}  Red8 {[%clk 0:00:48]} 26. Bc1 {[%clk 0:00:08]}  Rxd5 {[%clk 0:00:36]} 27. cxd5 {[%clk 0:00:06]}  Rb8 {[%clk 0:00:30]} 28. Be3 {[%clk 0:00:05]}  Na4 {[%clk 0:00:21]} 29. d6 {[%clk 0:00:05]}  Qb7+ {[%clk 0:00:19]} 30. Kg1 {[%clk 0:00:05]}  Nc3 {[%clk 0:00:19]} 31. Qd3 {[%clk 0:00:02]}  Nxd1 {[%clk 0:00:19]} 32. Qxd1 {[%clk 0:00:03]}  b2 {[%clk 0:00:19]} 33. Qb1 {[%clk 0:00:04]}  Ra8 {[%clk 0:00:18]} 34. Bc5 {[%clk 0:00:01]}  Ra1 {[%clk 0:00:17]} 0-1


[Site "https://www.chess.com"]

[Event "Titled Tuesday Blitz July 18 Early 2023"]
[White "Li, Hui"]
[Black "Keleberda, Tymur"]
[WhiteFideId "15400310"]
[BlackFideId "14174294"]
[WhiteElo "2353"]
[BlackElo "2515"]
[Result "1-0"]
[Round "5"]
[TimeControl "180+2"]
[Date "2023.07.18"]
[WhiteClock "0:00:12"]
[BlackClock "0:00:00"]
[Board "145"]

1. e4 {[%clk 0:03:00]}  c5 {[%clk 0:02:24]} 2. Nf3 {[%clk 0:03:00]}  a6 {[%clk 0:02:20]} 3. c4 {[%clk 0:02:59]}  Nc6 {[%clk 0:02:12]} 4. d4 {[%clk 0:02:59]}  cxd4 {[%clk 0:02:07]} 5. Nxd4 {[%clk 0:03:00]}  g6 {[%clk 0:02:07]} 6. Nc3 {[%clk 0:02:58]}  Bg7 {[%clk 0:02:07]} 7. Be3 {[%clk 0:02:58]}  e6 {[%clk 0:02:02]} 8. Be2 {[%clk 0:02:55]}  Nge7 {[%clk 0:02:02]} 9. O-O {[%clk 0:02:53]}  O-O {[%clk 0:02:01]} 10. c5 {[%clk 0:02:49]}  d5 {[%clk 0:01:56]} 11. cxd6 {[%clk 0:02:33]}  Qxd6 {[%clk 0:01:51]} 12. Nxc6 {[%clk 0:02:26]}  Qxc6 {[%clk 0:01:47]} 13. Rc1 {[%clk 0:02:26]}  Qe8 {[%clk 0:01:35]} 14. Qd2 {[%clk 0:02:10]}  b5 {[%clk 0:01:31]} 15. Bh6 {[%clk 0:02:01]}  Bb7 {[%clk 0:01:20]} 16. Bxg7 {[%clk 0:02:01]}  Kxg7 {[%clk 0:01:20]} 17. b4 {[%clk 0:01:51]}  Nc6 {[%clk 0:01:17]} 18. Qb2 {[%clk 0:01:46]}  e5 {[%clk 0:01:10]} 19. Rfd1 {[%clk 0:01:39]}  Nd4 {[%clk 0:01:06]} 20. Bf1 {[%clk 0:01:37]}  Rc8 {[%clk 0:01:06]} 21. f3 {[%clk 0:01:29]}  Qd8 {[%clk 0:01:03]} 22. Ne2 {[%clk 0:01:23]}  Rxc1 {[%clk 0:00:59]} 23. Qxc1 {[%clk 0:01:19]}  Nxe2+ {[%clk 0:00:36]} 24. Bxe2 {[%clk 0:01:20]}  Qb6+ {[%clk 0:00:37]} 25. Kf1 {[%clk 0:01:14]}  Rc8 {[%clk 0:00:35]} 26. Qd2 {[%clk 0:01:06]}  h5 {[%clk 0:00:29]} 27. Qd6 {[%clk 0:00:58]}  Qxd6 {[%clk 0:00:21]} 28. Rxd6 {[%clk 0:00:59]}  Rc7 {[%clk 0:00:20]} 29. Ke1 {[%clk 0:00:50]}  Kf8 {[%clk 0:00:20]} 30. Kd2 {[%clk 0:00:46]}  Ke7 {[%clk 0:00:20]} 31. Rd3 {[%clk 0:00:46]}  Bc8 {[%clk 0:00:20]} 32. Rc3 {[%clk 0:00:42]}  Rxc3 {[%clk 0:00:16]} 33. Kxc3 {[%clk 0:00:43]}  h4 {[%clk 0:00:16]} 34. g3 {[%clk 0:00:42]}  Be6 {[%clk 0:00:14]} 35. a3 {[%clk 0:00:38]}  Kf6 {[%clk 0:00:08]} 36. Kd2 {[%clk 0:00:28]}  Kg5 {[%clk 0:00:08]} 37. Ke3 {[%clk 0:00:28]}  f5 {[%clk 0:00:06]} 38. exf5 {[%clk 0:00:24]}  gxf5 {[%clk 0:00:06]} 39. f4+ {[%clk 0:00:19]}  exf4+ {[%clk 0:00:05]} 40. gxf4+ {[%clk 0:00:20]}  Kf6 {[%clk 0:00:05]} 41. Kd4 {[%clk 0:00:19]}  Bc8 {[%clk 0:00:03]} 42. Kd5 {[%clk 0:00:13]}  Bb7+ {[%clk 0:00:00]} 43. Kd6 {[%clk 0:00:12]} 1-0


[Site "https://www.chess.com"]

[Event "Titled Tuesday Blitz July 18 Early 2023"]
[White "MateoReyes"]
[Black "La Villa Rivas, Marlon Javier"]
[BlackFideId "3519546"]
[WhiteElo "2504"]
[BlackElo "2243"]
[Result "0-1"]
[Round "5"]
[TimeControl "180+2"]
[Date "2023.07.18"]
[WhiteClock "0:00:00"]
[BlackClock "0:00:07"]
[Board "149"]

1. Nf3 {[%clk 0:02:59]}  d5 {[%clk 0:02:59]} 2. d4 {[%clk 0:02:58]}  Nf6 {[%clk 0:02:58]} 3. c4 {[%clk 0:02:58]}  e6 {[%clk 0:02:55]} 4. Nc3 {[%clk 0:02:58]}  Bb4 {[%clk 0:02:54]} 5. Bg5 {[%clk 0:02:57]}  O-O {[%clk 0:02:47]} 6. a3 {[%clk 0:02:55]}  Be7 {[%clk 0:02:47]} 7. e3 {[%clk 0:02:54]}  c5 {[%clk 0:02:45]} 8. Be2 {[%clk 0:02:51]}  Nc6 {[%clk 0:02:43]} 9. O-O {[%clk 0:02:49]}  cxd4 {[%clk 0:02:42]} 10. exd4 {[%clk 0:02:48]}  dxc4 {[%clk 0:02:42]} 11. Bxc4 {[%clk 0:02:47]}  Nd5 {[%clk 0:02:35]} 12. Bxe7 {[%clk 0:02:43]}  Ndxe7 {[%clk 0:02:34]} 13. Rc1 {[%clk 0:02:41]}  Qa5 {[%clk 0:02:21]} 14. Ba2 {[%clk 0:02:38]}  Rd8 {[%clk 0:02:19]} 15. Re1 {[%clk 0:02:31]}  Nf5 {[%clk 0:01:58]} 16. Bb1 {[%clk 0:02:19]}  Nfxd4 {[%clk 0:01:52]} 17. Nxd4 {[%clk 0:02:18]}  Nxd4 {[%clk 0:01:53]} 18. Qg4 {[%clk 0:02:10]}  e5 {[%clk 0:01:47]} 19. Qh4 {[%clk 0:02:06]}  Bf5 {[%clk 0:01:43]} 20. Bxf5 {[%clk 0:01:58]}  Nxf5 {[%clk 0:01:44]} 21. Qg5 {[%clk 0:01:57]}  g6 {[%clk 0:01:40]} 22. Ne4 {[%clk 0:01:54]}  Rac8 {[%clk 0:01:36]} 23. Nf6+ {[%clk 0:01:49]}  Kg7 {[%clk 0:01:36]} 24. Nh5+ {[%clk 0:01:49]}  Kg8 {[%clk 0:01:34]} 25. Qf6 {[%clk 0:01:42]}  Rxc1 {[%clk 0:01:03]} 26. Rxc1 {[%clk 0:01:40]}  Qd2 {[%clk 0:01:03]} 27. Rf1 {[%clk 0:01:38]}  Rd6 {[%clk 0:00:56]} 28. Qxe5 {[%clk 0:01:31]}  gxh5 {[%clk 0:00:52]} 29. Qxf5 {[%clk 0:01:31]}  Qxb2 {[%clk 0:00:46]} 30. h3 {[%clk 0:01:24]}  Qxa3 {[%clk 0:00:44]} 31. Re1 {[%clk 0:01:19]}  Qc3 {[%clk 0:00:40]} 32. Re8+ {[%clk 0:01:06]}  Kg7 {[%clk 0:00:40]} 33. Re7 {[%clk 0:01:00]}  Rf6 {[%clk 0:00:39]} 34. Qxh5 {[%clk 0:00:49]}  Qc1+ {[%clk 0:00:38]} 35. Kh2 {[%clk 0:00:47]}  Qf4+ {[%clk 0:00:38]} 36. Kh1 {[%clk 0:00:46]}  Qxf2 {[%clk 0:00:21]} 37. Qd5 {[%clk 0:00:36]}  Qf1+ {[%clk 0:00:19]} 38. Kh2 {[%clk 0:00:35]}  Qf4+ {[%clk 0:00:19]} 39. Kh1 {[%clk 0:00:35]}  Qc1+ {[%clk 0:00:14]} 40. Kh2 {[%clk 0:00:33]}  Qf4+ {[%clk 0:00:11]} 41. Kh1 {[%clk 0:00:33]}  a5 {[%clk 0:00:12]} 42. Rxb7 {[%clk 0:00:31]}  a4 {[%clk 0:00:11]} 43. Ra7 {[%clk 0:00:28]}  a3 {[%clk 0:00:10]} 44. Ra5 {[%clk 0:00:19]}  Rg6 {[%clk 0:00:06]} 45. Qf3 {[%clk 0:00:08]}  Qc1+ {[%clk 0:00:06]} 46. Kh2 {[%clk 0:00:07]}  Qc7+ {[%clk 0:00:06]} 47. Kh1 {[%clk 0:00:02]}  Qxa5 {[%clk 0:00:06]} 48. Qe3 {[%clk 0:00:01]}  a2 {[%clk 0:00:06]} 49. Qd4+ {[%clk 0:00:01]}  Rf6 {[%clk 0:00:05]} 50. Qg4+ {[%clk 0:00:01]}  Rg6 {[%clk 0:00:06]} 51. Qd4+ {[%clk 0:00:01]}  f6 {[%clk 0:00:06]} 52. Qd7+ {[%clk 0:00:00]}  Kh6 {[%clk 0:00:07]} 0-1


[Site "https://www.chess.com"]

[Event "Titled Tuesday Blitz July 18 Early 2023"]
[White "Wartiovaara, Oliver"]
[Black "Wagh Suyog"]
[WhiteFideId "513024"]
[BlackFideId "25071688"]
[WhiteElo "2480"]
[BlackElo "2799"]
[Result "0-1"]
[Round "5"]
[TimeControl "180+2"]
[Date "2023.07.18"]
[WhiteClock "0:00:00"]
[BlackClock "0:00:13"]
[Board "150"]

1. Nc3 {[%clk 0:02:58]}  e6 {[%clk 0:02:56]} 2. d4 {[%clk 0:02:53]}  d5 {[%clk 0:02:56]} 3. e4 {[%clk 0:02:53]}  Bb4 {[%clk 0:02:53]} 4. e5 {[%clk 0:02:48]}  c5 {[%clk 0:02:49]} 5. a3 {[%clk 0:02:47]}  Bxc3+ {[%clk 0:02:49]} 6. bxc3 {[%clk 0:02:48]}  b6 {[%clk 0:02:44]} 7. Qg4 {[%clk 0:02:45]}  Kf8 {[%clk 0:02:44]} 8. Qd1 {[%clk 0:02:40]}  Ba6 {[%clk 0:02:43]} 9. a4 {[%clk 0:02:33]}  Bxf1 {[%clk 0:02:42]} 10. Kxf1 {[%clk 0:02:34]}  Ne7 {[%clk 0:02:35]} 11. dxc5 {[%clk 0:02:30]}  bxc5 {[%clk 0:02:33]} 12. c4 {[%clk 0:02:31]}  Nd7 {[%clk 0:02:28]} 13. Nf3 {[%clk 0:02:30]}  Qc7 {[%clk 0:02:23]} 14. cxd5 {[%clk 0:02:20]}  Nxd5 {[%clk 0:02:20]} 15. c4 {[%clk 0:02:17]}  Nb4 {[%clk 0:02:20]} 16. Qe2 {[%clk 0:02:04]}  Nc6 {[%clk 0:02:14]} 17. Bf4 {[%clk 0:01:52]}  h6 {[%clk 0:02:07]} 18. h4 {[%clk 0:01:50]}  Nd4 {[%clk 0:02:02]} 19. Nxd4 {[%clk 0:01:49]}  cxd4 {[%clk 0:02:03]} 20. Rh3 {[%clk 0:01:41]}  Nc5 {[%clk 0:02:02]} 21. Rd1 {[%clk 0:01:14]}  Rd8 {[%clk 0:02:01]} 22. Qh5 {[%clk 0:01:13]}  Qc6 {[%clk 0:01:51]} 23. Rf3 {[%clk 0:01:10]}  Rd7 {[%clk 0:01:48]} 24. Bc1 {[%clk 0:01:04]}  Qxa4 {[%clk 0:01:45]} 25. Re1 {[%clk 0:01:01]}  Qxc4+ {[%clk 0:01:44]} 26. Kg1 {[%clk 0:01:01]}  d3 {[%clk 0:01:33]} 27. Be3 {[%clk 0:00:49]}  d2 {[%clk 0:01:22]} 28. Rd1 {[%clk 0:00:49]}  Ne4 {[%clk 0:01:21]} 29. Rf4 {[%clk 0:00:47]}  Qd3 {[%clk 0:01:12]} 30. Qf3 {[%clk 0:00:43]}  f5 {[%clk 0:00:47]} 31. exf6 {[%clk 0:00:42]}  Nxf6 {[%clk 0:00:47]} 32. Qa8+ {[%clk 0:00:37]}  Rd8 {[%clk 0:00:45]} 33. Qxa7 {[%clk 0:00:30]}  Qc2 {[%clk 0:00:43]} 34. Qa1 {[%clk 0:00:24]}  Kf7 {[%clk 0:00:39]} 35. Bd4 {[%clk 0:00:19]}  Ra8 {[%clk 0:00:33]} 36. Qb1 {[%clk 0:00:15]}  Qxb1 {[%clk 0:00:32]} 37. Rxb1 {[%clk 0:00:16]}  Rhc8 {[%clk 0:00:32]} 38. Be3 {[%clk 0:00:15]}  Ra2 {[%clk 0:00:30]} 39. Rd4 {[%clk 0:00:14]}  Rcc2 {[%clk 0:00:30]} 40. Rd1 {[%clk 0:00:14]}  Nd5 {[%clk 0:00:27]} 41. Bxd2 {[%clk 0:00:10]}  Kf6 {[%clk 0:00:26]} 42. Be1 {[%clk 0:00:09]}  Re2 {[%clk 0:00:25]} 43. Rc1 {[%clk 0:00:09]}  Ke5 {[%clk 0:00:22]} 44. Rd3 {[%clk 0:00:07]}  Ke4 {[%clk 0:00:22]} 45. Rg3 {[%clk 0:00:07]}  Nf4 {[%clk 0:00:16]} 46. Kf1 {[%clk 0:00:06]}  Nd3 {[%clk 0:00:12]} 47. Rc4+ {[%clk 0:00:05]}  Kd5 {[%clk 0:00:13]} 48. Rxd3+ {[%clk 0:00:02]}  Kxc4 {[%clk 0:00:13]} 49. Rg3 {[%clk 0:00:03]}  Re5 {[%clk 0:00:13]} 50. Rxg7 {[%clk 0:00:03]}  Ra1 {[%clk 0:00:12]} 51. Rc7+ {[%clk 0:00:00]}  Kb5 {[%clk 0:00:13]} 0-1


[Site "https://www.chess.com"]

[Event "Titled Tuesday Blitz July 18 Early 2023"]
[White "Thiel, Thomas"]
[Black "Filgueira, Hernan"]
[WhiteFideId "4615964"]
[BlackFideId "101770"]
[WhiteElo "2241"]
[BlackElo "2584"]
[Result "1/2-1/2"]
[Round "5"]
[TimeControl "180+2"]
[Date "2023.07.18"]
[WhiteClock "0:01:24"]
[BlackClock "0:01:44"]
[Board "151"]

1. e4 {[%clk 0:03:00]}  c5 {[%clk 0:02:58]} 2. Nc3 {[%clk 0:02:58]}  e6 {[%clk 0:02:58]} 3. Nge2 {[%clk 0:02:55]}  a6 {[%clk 0:02:58]} 4. g3 {[%clk 0:02:55]}  Nc6 {[%clk 0:02:56]} 5. Bg2 {[%clk 0:02:54]}  Nf6 {[%clk 0:02:55]} 6. O-O {[%clk 0:02:51]}  Qc7 {[%clk 0:02:55]} 7. d4 {[%clk 0:02:49]}  cxd4 {[%clk 0:02:55]} 8. Nxd4 {[%clk 0:02:49]}  Bc5 {[%clk 0:02:56]} 9. Nxc6 {[%clk 0:02:41]}  dxc6 {[%clk 0:02:55]} 10. Bg5 {[%clk 0:02:33]}  e5 {[%clk 0:02:51]} 11. Bxf6 {[%clk 0:02:31]}  gxf6 {[%clk 0:02:50]} 12. Qh5 {[%clk 0:02:28]}  Be6 {[%clk 0:02:47]} 13. Bh3 {[%clk 0:02:27]}  O-O-O {[%clk 0:02:44]} 14. Bxe6+ {[%clk 0:02:25]}  fxe6 {[%clk 0:02:44]} 15. Rad1 {[%clk 0:02:24]}  Bd4 {[%clk 0:02:24]} 16. Rd3 {[%clk 0:02:15]}  Qb6 {[%clk 0:02:16]} 17. Na4 {[%clk 0:02:13]}  Qb5 {[%clk 0:02:14]} 18. b3 {[%clk 0:02:12]}  Qa5 {[%clk 0:01:57]} 19. Qf7 {[%clk 0:01:48]}  Rde8 {[%clk 0:01:56]} 20. c3 {[%clk 0:01:31]}  Rhf8 {[%clk 0:01:55]} 21. Qg7 {[%clk 0:01:25]}  Rg8 {[%clk 0:01:52]} 22. Qf7 {[%clk 0:01:25]}  Rgf8 {[%clk 0:01:43]} 23. Qg7 {[%clk 0:01:25]}  Rg8 {[%clk 0:01:43]} 24. Qf7 {[%clk 0:01:24]}  Rgf8 {[%clk 0:01:44]} 1/2-1/2


[Site "https://www.chess.com"]

[Event "Titled Tuesday Blitz July 18 Early 2023"]
[White "UgarteCesar"]
[Black "Gavrilov, Maxim"]
[BlackFideId "24271454"]
[WhiteElo "2183"]
[BlackElo "2546"]
[Result "0-1"]
[Round "5"]
[TimeControl "180+2"]
[Date "2023.07.18"]
[WhiteClock "0:00:32"]
[BlackClock "0:01:03"]
[Board "152"]

1. d4 {[%clk 0:02:57]}  Nf6 {[%clk 0:02:59]} 2. Bg5 {[%clk 0:02:56]}  c5 {[%clk 0:02:58]} 3. Bxf6 {[%clk 0:02:56]}  exf6 {[%clk 0:02:57]} 4. d5 {[%clk 0:02:57]}  b5 {[%clk 0:02:55]} 5. g3 {[%clk 0:02:55]}  Bb7 {[%clk 0:02:54]} 6. Bg2 {[%clk 0:02:55]}  Bd6 {[%clk 0:02:51]} 7. e3 {[%clk 0:02:54]}  O-O {[%clk 0:02:51]} 8. Ne2 {[%clk 0:02:54]}  a5 {[%clk 0:02:51]} 9. O-O {[%clk 0:02:54]}  Re8 {[%clk 0:02:50]} 10. Nd2 {[%clk 0:02:53]}  Na6 {[%clk 0:02:50]} 11. c3 {[%clk 0:02:51]}  a4 {[%clk 0:02:49]} 12. a3 {[%clk 0:02:50]}  Qb6 {[%clk 0:02:42]} 13. c4 {[%clk 0:02:45]}  Nc7 {[%clk 0:02:33]} 14. Qc2 {[%clk 0:02:36]}  b4 {[%clk 0:02:31]} 15. Rfb1 {[%clk 0:02:09]}  g6 {[%clk 0:02:13]} 16. b3 {[%clk 0:01:47]}  axb3 {[%clk 0:02:06]} 17. Rxb3 {[%clk 0:01:45]}  f5 {[%clk 0:01:59]} 18. Rab1 {[%clk 0:01:43]}  Na6 {[%clk 0:01:56]} 19. axb4 {[%clk 0:01:41]}  Nxb4 {[%clk 0:01:54]} 20. Nc3 {[%clk 0:01:38]}  Be5 {[%clk 0:01:50]} 21. Rxb4 {[%clk 0:01:28]}  cxb4 {[%clk 0:01:48]} 22. Nb5 {[%clk 0:01:28]}  Qc5 {[%clk 0:01:39]} 23. Qb3 {[%clk 0:01:23]}  Ra1 {[%clk 0:01:33]} 24. Bf1 {[%clk 0:01:18]}  Rxb1 {[%clk 0:01:30]} 25. Qxb1 {[%clk 0:01:18]}  Ra8 {[%clk 0:01:24]} 26. Nb3 {[%clk 0:01:18]}  Qf8 {[%clk 0:01:23]} 27. h4 {[%clk 0:01:12]}  Bc3 {[%clk 0:01:19]} 28. Qc2 {[%clk 0:01:09]}  Qg7 {[%clk 0:01:17]} 29. N5d4 {[%clk 0:00:53]}  Rc8 {[%clk 0:01:12]} 30. Be2 {[%clk 0:00:52]}  Ba6 {[%clk 0:01:11]} 31. Qa2 {[%clk 0:00:40]}  Bxc4 {[%clk 0:01:08]} 32. Bxc4 {[%clk 0:00:40]}  Rxc4 {[%clk 0:01:08]} 33. Qa8+ {[%clk 0:00:40]}  Qf8 {[%clk 0:01:07]} 34. Qa6 {[%clk 0:00:40]}  Qc8 {[%clk 0:01:05]} 35. h5 {[%clk 0:00:32]}  Qxa6 {[%clk 0:01:03]} 0-1


[Site "https://www.chess.com"]

[Event "Titled Tuesday Blitz July 18 Early 2023"]
[White "Saucey, Michel"]
[Black "Yeritsyan, Hayk"]
[WhiteFideId "601845"]
[BlackFideId "13307320"]
[WhiteElo "2319"]
[BlackElo "2504"]
[Result "0-1"]
[Round "5"]
[TimeControl "180+2"]
[Date "2023.07.18"]
[WhiteClock "0:01:57"]
[BlackClock "0:02:10"]
[Board "156"]

1. d4 {[%clk 0:03:00]}  d5 {[%clk 0:02:22]} 2. c4 {[%clk 0:02:59]}  e6 {[%clk 0:02:23]} 3. Nf3 {[%clk 0:02:59]}  Nf6 {[%clk 0:02:23]} 4. Nc3 {[%clk 0:02:58]}  c6 {[%clk 0:02:23]} 5. e3 {[%clk 0:02:57]}  Bd6 {[%clk 0:02:13]} 6. Bd3 {[%clk 0:02:51]}  Nbd7 {[%clk 0:02:13]} 7. b3 {[%clk 0:02:46]}  Qe7 {[%clk 0:02:10]} 8. O-O {[%clk 0:02:46]}  e5 {[%clk 0:02:10]} 9. dxe5 {[%clk 0:02:43]}  Nxe5 {[%clk 0:02:11]} 10. Be2 {[%clk 0:02:18]}  Nxf3+ {[%clk 0:02:09]} 11. Bxf3 {[%clk 0:01:57]}  Qe5 {[%clk 0:02:10]} 0-1


[Site "https://www.chess.com"]

[Event "Titled Tuesday Blitz July 18 Early 2023"]
[White "vishwa_vijeta"]
[Black "Ljukin, Sergei"]
[BlackFideId "14102200"]
[WhiteElo "2280"]
[BlackElo "2475"]
[Result "1-0"]
[Round "5"]
[TimeControl "180+2"]
[Date "2023.07.18"]
[WhiteClock "0:01:05"]
[BlackClock "0:00:00"]
[Board "162"]

1. e4 {[%clk 0:03:00]}  e6 {[%clk 0:02:51]} 2. d4 {[%clk 0:03:00]}  d5 {[%clk 0:02:50]} 3. Bd3 {[%clk 0:03:00]}  dxe4 {[%clk 0:02:49]} 4. Bxe4 {[%clk 0:03:01]}  Nf6 {[%clk 0:02:49]} 5. Bf3 {[%clk 0:03:01]}  Nbd7 {[%clk 0:02:50]} 6. Ne2 {[%clk 0:03:01]}  Bd6 {[%clk 0:02:50]} 7. c4 {[%clk 0:03:00]}  e5 {[%clk 0:02:51]} 8. Nbc3 {[%clk 0:02:56]}  exd4 {[%clk 0:02:34]} 9. Nxd4 {[%clk 0:02:56]}  Ne5 {[%clk 0:02:34]} 10. Be2 {[%clk 0:02:51]}  O-O {[%clk 0:02:32]} 11. O-O {[%clk 0:02:50]}  Bg4 {[%clk 0:02:32]} 12. Bxg4 {[%clk 0:02:48]}  Nfxg4 {[%clk 0:02:32]} 13. h3 {[%clk 0:02:48]}  Nf6 {[%clk 0:02:30]} 14. b3 {[%clk 0:02:47]}  Bc5 {[%clk 0:02:13]} 15. Be3 {[%clk 0:02:46]}  Qd7 {[%clk 0:02:03]} 16. Nc2 {[%clk 0:02:33]}  Bxe3 {[%clk 0:01:43]} 17. Nxe3 {[%clk 0:02:34]}  Qe6 {[%clk 0:01:37]} 18. Re1 {[%clk 0:02:30]}  c6 {[%clk 0:01:26]} 19. Qc2 {[%clk 0:02:13]}  Rad8 {[%clk 0:01:15]} 20. Rad1 {[%clk 0:02:03]}  Rxd1 {[%clk 0:00:58]} 21. Rxd1 {[%clk 0:02:03]}  Ng6 {[%clk 0:00:54]} 22. Ne2 {[%clk 0:02:00]}  h6 {[%clk 0:00:48]} 23. Nd4 {[%clk 0:01:59]}  Qe5 {[%clk 0:00:37]} 24. Nf3 {[%clk 0:01:57]}  Qa5 {[%clk 0:00:31]} 25. Nf5 {[%clk 0:01:52]}  Re8 {[%clk 0:00:25]} 26. Nd6 {[%clk 0:01:51]}  Re7 {[%clk 0:00:22]} 27. Nf5 {[%clk 0:01:41]}  Rd7 {[%clk 0:00:17]} 28. Rxd7 {[%clk 0:01:34]}  Nxd7 {[%clk 0:00:17]} 29. Ne3 {[%clk 0:01:34]}  Nf6 {[%clk 0:00:17]} 30. Qd2 {[%clk 0:01:30]}  Qxd2 {[%clk 0:00:15]} 31. Nxd2 {[%clk 0:01:31]}  Kf8 {[%clk 0:00:15]} 32. Kf1 {[%clk 0:01:32]}  Nf4 {[%clk 0:00:15]} 33. g3 {[%clk 0:01:31]}  Nd3 {[%clk 0:00:15]} 34. a3 {[%clk 0:01:25]}  a5 {[%clk 0:00:14]} 35. Ke2 {[%clk 0:01:25]}  Ne5 {[%clk 0:00:13]} 36. f4 {[%clk 0:01:24]}  Ned7 {[%clk 0:00:13]} 37. Nd1 {[%clk 0:01:15]}  Ke7 {[%clk 0:00:12]} 38. Ke3 {[%clk 0:01:16]}  Kd6 {[%clk 0:00:11]} 39. Nc3 {[%clk 0:01:16]}  Nc5 {[%clk 0:00:09]} 40. b4 {[%clk 0:01:12]}  axb4 {[%clk 0:00:09]} 41. axb4 {[%clk 0:01:13]}  Ne6 {[%clk 0:00:09]} 42. Nde4+ {[%clk 0:01:13]}  Nxe4 {[%clk 0:00:09]} 43. Nxe4+ {[%clk 0:01:14]}  Ke7 {[%clk 0:00:09]} 44. c5 {[%clk 0:01:14]}  Nc7 {[%clk 0:00:08]} 45. Kd4 {[%clk 0:01:12]}  Nd5 {[%clk 0:00:07]} 46. b5 {[%clk 0:01:11]}  Ke6 {[%clk 0:00:07]} 47. Nd6 {[%clk 0:01:05]}  cxb5 {[%clk 0:00:00]} 48. f5+ {[%clk 0:01:05]} 1-0


[Site "https://www.chess.com"]

[Event "Titled Tuesday Blitz July 18 Early 2023"]
[White "Magallanes, Rey Jomar"]
[Black "Liu, Casper"]
[WhiteFideId "5205948"]
[BlackFideId "1454153"]
[WhiteElo "2273"]
[BlackElo "2461"]
[Result "0-1"]
[Round "5"]
[TimeControl "180+2"]
[Date "2023.07.18"]
[WhiteClock "0:02:37"]
[BlackClock "0:02:26"]
[Board "163"]

1. e4 {[%clk 0:02:56]}  c5 {[%clk 0:02:23]} 2. Nf3 {[%clk 0:02:55]}  d6 {[%clk 0:02:24]} 3. d4 {[%clk 0:02:55]}  cxd4 {[%clk 0:02:25]} 4. Nxd4 {[%clk 0:02:55]}  Nf6 {[%clk 0:02:26]} 5. Nc3 {[%clk 0:02:55]}  Nc6 {[%clk 0:02:27]} 6. Bg5 {[%clk 0:02:53]}  Bd7 {[%clk 0:02:27]} 7. Qd2 {[%clk 0:02:52]}  Rc8 {[%clk 0:02:28]} 8. f3 {[%clk 0:02:52]}  Nxd4 {[%clk 0:02:28]} 9. Qxd4 {[%clk 0:02:52]}  Qa5 {[%clk 0:02:29]} 10. O-O-O {[%clk 0:02:50]}  Qxg5+ {[%clk 0:02:28]} 11. Qd2 {[%clk 0:02:43]}  Qxd2+ {[%clk 0:02:28]} 12. Rxd2 {[%clk 0:02:44]}  g6 {[%clk 0:02:28]} 13. Bb5 {[%clk 0:02:43]}  Bg7 {[%clk 0:02:27]} 14. Bxd7+ {[%clk 0:02:43]}  Nxd7 {[%clk 0:02:26]} 15. Nd5 {[%clk 0:02:44]}  e6 {[%clk 0:02:26]} 16. Nb4 {[%clk 0:02:37]}  Bh6 {[%clk 0:02:26]} 0-1


[Site "https://www.chess.com"]

[Event "Titled Tuesday Blitz July 18 Early 2023"]
[White "Nugumanov, Bakhtiyar"]
[Black "Rodriguez Fontecha, Marcos"]
[WhiteFideId "13701797"]
[BlackFideId "2256576"]
[WhiteElo "2267"]
[BlackElo "2461"]
[Result "0-1"]
[Round "5"]
[TimeControl "180+2"]
[Date "2023.07.18"]
[WhiteClock "0:01:49"]
[BlackClock "0:01:03"]
[Board "164"]

1. Nf3 {[%clk 0:02:42]}  Nf6 {[%clk 0:02:58]} 2. c4 {[%clk 0:02:39]}  d6 {[%clk 0:02:57]} 3. g3 {[%clk 0:02:40]}  g6 {[%clk 0:02:52]} 4. Bg2 {[%clk 0:02:39]}  Bg7 {[%clk 0:02:53]} 5. O-O {[%clk 0:02:40]}  O-O {[%clk 0:02:53]} 6. Nc3 {[%clk 0:02:40]}  e5 {[%clk 0:02:53]} 7. d3 {[%clk 0:02:41]}  Nc6 {[%clk 0:02:53]} 8. Rb1 {[%clk 0:02:41]}  h6 {[%clk 0:02:42]} 9. b4 {[%clk 0:02:41]}  Be6 {[%clk 0:02:43]} 10. h3 {[%clk 0:02:40]}  Qd7 {[%clk 0:02:42]} 11. b5 {[%clk 0:02:40]}  Nd8 {[%clk 0:02:41]} 12. Kh2 {[%clk 0:02:41]}  Nh7 {[%clk 0:02:27]} 13. e4 {[%clk 0:02:37]}  f5 {[%clk 0:02:26]} 14. Nh4 {[%clk 0:02:20]}  Qf7 {[%clk 0:01:59]} 15. f4 {[%clk 0:01:55]}  exf4 {[%clk 0:01:55]} 16. Nd5 {[%clk 0:01:55]}  fxg3+ {[%clk 0:01:52]} 17. Kh1 {[%clk 0:01:56]}  Bxd5 {[%clk 0:01:19]} 18. cxd5 {[%clk 0:01:53]}  Qf6 {[%clk 0:01:12]} 19. Bb2 {[%clk 0:01:52]}  Qxh4 {[%clk 0:01:12]} 20. Bxg7 {[%clk 0:01:52]}  Kxg7 {[%clk 0:01:12]} 21. Qc1 {[%clk 0:01:51]}  f4 {[%clk 0:01:04]} 22. Qc6 {[%clk 0:01:49]}  bxc6 {[%clk 0:01:03]} 0-1


[Site "https://www.chess.com"]